bitfinex/quotes_SOLUSD_20260213
["timestamp","ask_amount","ask_price","bid_price","bid_amount"]
[1770977013769,0.69003105,79.954,79.925,0.80377379]
[1770977016776,4.13383914,79.96,79.931,0.79548292]
[1770977017088,4.81312006,79.96,79.931,0.79548292]
[1770977017393,0.68496877,79.959,79.931,0.79548292]
[1770977018890,0.68398062,79.949,79.923,57.83548292]
[1770977019086,0.68398062,79.949,79.924,0.79548292]
[1770977019872,0.68300987,79.991,79.941,0.79548292]
[1770977020187,0.80584944,79.989,79.96,4.12815129]
[1770977020574,12.50146838,79.991,79.97,4.12815129]
[1770977021072,8.41426737,79.989,79.97,4.12815129]
[1770977021273,12.50015625,79.999,79.97,4.12815129]
[1770977021274,8.41426737,79.988,79.97,4.12815129]
[1770977021494,12.50015625,79.999,79.97,4.12815129]
[1770977021495,8.41426737,79.987,79.97,4.12815129]
[1770977021675,8.41426737,79.986,79.97,4.12815129]
[1770977021878,8.41426737,79.985,79.97,4.12815129]
[1770977022076,8.41426737,79.984,79.971,0.79548292]
[1770977022277,0.80584944,79.979,79.95,4.92363421]
[1770977022586,0.80584944,79.969,79.95,0.79548292]
[1770977022774,8.41426737,79.968,79.95,0.79548292]
[1770977023094,0.80584944,79.969,79.95,0.79548292]
[1770977023095,8.41426737,79.967,79.95,0.79548292]
[1770977023273,8.41426737,79.966,79.95,0.79548292]
[1770977023472,8.41426737,79.965,79.95,0.79548292]
[1770977023681,8.41426737,79.964,79.95,0.79548292]
[1770977023996,8.41426737,79.963,79.95,0.79548292]
[1770977024196,8.41426737,79.962,79.951,12.50766094]
[1770977024398,8.41426737,79.961,79.951,12.50766094]
[1770977024596,0.80584944,79.969,79.952,0.79548292]
[1770977024893,8.39943228,79.968,79.952,0.79548292]
[1770977025192,0.80584944,79.975,79.952,0.79548292]
[1770977025193,8.39943228,79.967,79.952,0.79548292]
[1770977025393,8.39943228,79.966,79.952,0.79548292]
[1770977025596,8.39943228,79.965,79.952,0.79548292]
[1770977025895,8.39943228,79.964,79.952,0.79548292]
[1770977026078,8.39943228,79.963,79.952,0.79548292]
[1770977026277,8.39943228,79.962,79.954,0.79548292]
[1770977026484,0.80584944,79.975,79.954,0.79548292]
[1770977026673,0.80584944,79.973,79.954,0.79548292]
[1770977026879,0.80584944,79.992,79.961,0.79548292]
[1770977027177,0.1,80.0,79.971,0.79548292]
[1770977027571,0.1,80.0,79.981,0.79548292]
[1770977028202,0.80584944,79.999,79.981,0.79548292]
[1770977028400,0.1,80.0,79.983,0.79548292]
[1770977028781,0.1,80.0,79.982,43.75984596]
[1770977028782,0.80584944,80.012,79.984,0.79548292]
[1770977030279,0.80584944,80.012,79.991,0.79548292]
[1770977030479,4.12815129,80.02,79.991,0.79548292]
[1770977030480,0.80584944,80.019,79.991,0.79548292]
[1770977030884,0.1,80.03,79.991,0.79548292]
[1770977031088,0.1,80.03,80.001,0.79548292]
[1770977031583,0.1,80.03,80.01,4.12815129]
[1770977031783,0.1,80.04,80.021,0.79548292]
[1770977032087,0.1,80.04,80.021,0.72849808]
[1770977032492,0.1,80.04,80.022,12.49656344]
[1770977032694,0.1,80.04,80.022,12.36904105]
[1770977034014,0.1,80.04,80.03,4.12815129]
[1770977034185,0.1,80.05,80.03,4.12815129]
[1770977034601,0.1,80.05,80.033,0.79548292]
[1770977035108,0.80584944,80.049,80.028,0.79548292]
[1770977036919,0.80584944,80.049,80.029,12.49547039]
[1770977037086,0.80584944,80.049,80.03,0.79548292]
[1770977039098,0.80584944,80.049,80.029,12.49547039]
[1770977039516,0.80584944,80.049,80.03,0.79548292]
[1770977041415,0.80584944,80.049,80.031,12.49515812]
[1770977041803,0.1,80.06,80.041,0.76939021]
[1770977042112,0.83576261,80.069,80.026,0.76939021]
[1770977042303,0.83576261,80.069,80.028,0.76939021]
[1770977042304,0.83576261,80.059,80.028,0.76939021]
[1770977042489,0.83576261,80.059,80.027,12.49578267]
[1770977042490,0.83576261,80.059,80.031,0.76939021]
[1770977042693,0.83576261,80.065,80.031,0.76939021]
[1770977043246,0.83576261,80.065,80.021,34.06]
[1770977043247,0.83576261,80.065,80.041,0.76939021]
[1770977043404,0.1,80.07,80.043,0.76939021]
[1770977044107,0.83576261,80.069,80.043,0.76939021]
[1770977045215,0.83576261,80.069,80.045,0.76939021]
[1770977047221,4.12815129,80.06,80.042,54.28127785]
[1770977047402,0.1,80.07,80.044,0.76939021]
[1770977047403,13.32499065,80.069,80.044,0.76939021]
[1770977048303,0.83576261,80.069,80.044,0.76939021]
[1770977048501,0.83576261,80.069,80.046,0.76939021]
[1770977049317,0.83576261,80.069,80.047,12.49266056]
[1770977049893,0.83576261,80.059,80.045,57.22]
[1770977050219,0.83576261,80.059,80.032,57.24]
[1770977050523,0.83576261,80.049,80.032,57.24]
[1770977051013,43.71241002,80.069,80.01,4.12815129]
[1770977051014,0.83576261,80.039,80.017,0.76939021]
[1770977051397,4.12815129,80.04,80.015,57.26]
[1770977051398,0.53556768,80.029,80.015,57.26]
[1770977051597,0.53556768,80.029,79.991,0.76939021]
[1770977051916,0.53556768,80.019,79.992,0.76939021]
[1770977053827,0.53858667,80.017,79.992,0.76939021]
[1770977055311,12.49750049,80.016,79.992,0.76939021]
[1770977055769,0.54155077,80.036,79.994,0.76939021]
[1770977055930,0.54155077,80.029,80.001,0.76939021]
[1770977057302,8.31720095,80.028,80.003,0.76939021]
[1770977057502,13.03711808,80.029,80.003,0.76939021]
[1770977057705,8.31719937,80.028,80.003,0.76939021]
[1770977057920,13.03711808,80.029,80.003,0.76939021]
[1770977058122,8.31719937,80.028,80.003,0.76939021]
[1770977058322,8.31719937,80.027,80.003,0.76939021]
[1770977058529,8.31719937,80.026,80.003,0.76939021]
[1770977058712,4.12815129,80.02,80.003,0.76939021]
[1770977059112,4.12815129,80.02,79.998,0.76939021]
[1770977059322,4.67540453,80.02,79.998,0.76939021]
[1770977059829,4.67540453,80.02,79.999,12.50015625]
[1770977060027,0.54725324,80.02,79.999,12.50015625]
[1770977060722,0.54725324,80.02,79.999,13.26954646]
[1770977060921,0.54725324,80.02,80.0,0.76939021]
[1770977061124,8.33728557,80.019,80.0,0.76939021]
[1770977061311,8.33728557,80.019,79.999,12.50015625]
[1770977061312,13.04605653,80.026,80.002,0.76939021]
[1770977061625,8.33862336,80.025,80.002,0.76939021]
[1770977061808,8.33862336,80.024,80.002,0.76939021]
[1770977062003,8.33862336,80.023,80.002,0.76939021]
[1770977062205,4.12815129,80.02,80.002,0.76939021]
[1770977062521,0.55134715,80.009,79.99,69.76145169]
[1770977063029,0.55134715,80.009,79.99,70.5308419]
[1770977063215,8.3481412,80.008,79.99,70.5308419]
[1770977063416,0.55134715,80.009,79.99,70.5308419]
[1770977063615,8.34911621,80.008,79.99,70.5308419]
[1770977063825,0.55134715,80.009,79.99,70.5308419]
[1770977064008,8.3491151,80.008,79.99,70.5308419]
[1770977064209,8.35512254,80.007,79.99,70.5308419]
[1770977064410,8.35512254,80.006,79.99,70.5308419]
[1770977064722,8.35512254,80.005,79.99,70.5308419]
[1770977064923,0.55134715,80.009,79.991,0.76939021]
[1770977065123,8.35594239,80.008,79.991,0.76939021]
[1770977065321,6.63086981,80.007,79.993,0.76939021]
[1770977065624,4.12815129,80.02,79.993,0.76939021]
[1770977065831,4.12815129,80.02,79.992,12.50125012]
[1770977065832,0.5553077,80.023,80.001,0.76939021]
[1770977066124,14.64598551,80.03,80.001,0.76939021]
[1770977066125,0.83576261,80.028,80.001,0.76939021]
[1770977067235,0.83576261,80.026,80.002,0.76939021]
[1770977069235,0.83576261,80.026,79.992,31.25312531]
[1770977069236,0.83576261,80.026,80.004,0.76939021]
[1770977069535,0.83576261,80.024,79.994,0.76939021]
[1770977071142,0.83576261,80.024,80.001,0.83309314]
[1770977071329,0.83576261,80.024,80.002,13.33278064]
[1770977071730,0.83576261,80.024,80.002,12.4996875]
[1770977073522,0.83576261,80.024,80.001,0.83309314]
[1770977074223,0.78973362,80.019,79.991,12.5014064]
[1770977075339,31.23922968,80.028,79.991,12.5014064]
[1770977075340,0.86663272,80.009,79.991,12.5014064]
[1770977075643,0.86663272,80.009,79.974,0.83182386]
[1770977075644,0.86663272,80.009,79.983,12.50264486]
[1770977075836,10.47653906,80.015,79.977,57.42]
[1770977075837,0.86663272,79.999,79.977,57.42]
[1770977076243,0.86663272,79.999,79.975,12.50390747]
[1770977076757,0.86663272,79.999,79.975,13.33573133]
[1770977077324,0.86663272,79.997,79.975,13.33573133]
[1770977077526,8.38764784,79.996,79.975,13.33573133]
[1770977077727,8.38764784,79.995,79.975,13.33573133]
[1770977077950,8.38764784,79.994,79.975,13.33573133]
[1770977078150,0.86663272,79.997,79.976,0.83182386]
[1770977078452,0.86663272,79.995,79.976,0.83182386]
[1770977078635,0.86663272,79.995,79.975,12.50390747]
[1770977079520,62.4757267,80.032,79.959,12.50640953]
[1770977079521,4.12388736,79.98,79.959,12.50640953]
[1770977080147,4.12388736,79.98,79.959,13.38257082]
[1770977081546,4.12388736,79.98,79.96,0.87616129]
[1770977082747,4.12388736,79.98,79.948,31.27028703]
[1770977082748,4.12388736,79.97,79.932,0.87616129]
[1770977083040,4.12388736,79.96,79.932,0.87616129]
[1770977083245,12.50243949,79.985,79.941,0.87616129]
[1770977083446,4.12388736,79.98,79.951,0.87616129]
[1770977084337,16.62550591,79.99,79.951,0.87616129]
[1770977084730,4.12388736,79.98,79.951,0.87616129]
[1770977085647,4.12388736,79.98,79.93,0.2]
[1770977085648,4.12388736,79.97,79.952,57.5]
[1770977085947,4.12388736,79.96,79.942,57.52]
[1770977087046,4.12388736,79.95,79.935,0.87616129]
[1770977088149,0.02385571,79.949,79.93,12.7109177]
[1770977088350,30.0,79.948,79.931,0.87616129]
[1770977091630,30.0,79.948,79.932,12.51063403]
[1770977091834,30.0,79.948,79.932,13.38679532]
[1770977092037,30.0,79.948,65.577,10.04975039]
[1770977092038,0.70743816,79.946,79.83,0.2]
[1770977092268,0.71070851,79.909,79.87,4.12388736]
[1770977092567,4.12388736,79.88,79.86,0.2]
[1770977092741,0.71070851,79.889,79.86,4.32388736]
[1770977092941,0.71070851,79.889,79.86,0.2]
[1770977093151,4.12388736,79.9,79.87,4.12388736]
[1770977093456,12.51423494,79.909,79.88,4.12388736]
[1770977094255,12.51423494,79.909,79.881,0.83182386]
[1770977095557,12.51423494,79.909,79.88,9.8427457]
[1770977095558,12.51325279,79.916,79.883,0.83182386]
[1770977095783,9.8427457,79.9,79.883,0.83182386]
[1770977096454,9.8427457,79.9,79.885,0.83182386]
[1770977098661,9.8427457,79.9,79.887,0.83182386]
[1770977098839,9.8427457,79.9,79.886,12.51783791]
[1770977098840,9.8427457,79.9,79.886,12.70637722]
[1770977099360,0.86663272,79.909,79.881,12.51854743]
[1770977100058,12.51360854,79.913,79.863,0.19358152]
[1770977100059,0.86663272,79.889,79.863,0.19358152]
[1770977100643,0.86663272,79.889,79.867,12.52079657]
[1770977100843,9.8427457,79.9,79.868,0.20348996]
[1770977101249,10.72353391,79.9,79.868,0.20348996]
[1770977101462,9.8427457,79.92,79.87,9.8427457]
[1770977101667,9.8427457,79.92,79.88,9.8427457]
[1770977101845,9.8427457,79.91,79.881,57.82]
[1770977102041,0.91375797,79.919,79.881,57.82]
[1770977102350,0.91375797,79.919,79.88,57.82]
[1770977103446,0.91375797,79.919,79.881,43.81517506]
[1770977104246,9.8427457,79.93,79.89,9.8427457]
[1770977104565,9.8427457,79.93,79.882,57.82]
[1770977104764,10.75650367,79.93,79.882,57.82]
[1770977104952,0.91375797,79.929,79.882,57.82]
[1770977105269,9.8427457,79.92,79.882,57.82]
[1770977105569,9.8427457,79.92,79.883,43.81407808]
[1770977105865,9.8427457,79.93,79.89,9.8427457]
[1770977106068,9.8427457,79.93,79.891,0.02426957]
[1770977106846,9.8427457,79.94,79.901,0.02426957]
[1770977107250,0.91375797,79.939,79.901,0.02426957]
[1770977107767,0.91375797,79.939,79.902,0.02895804]
[1770977108667,0.91375797,79.938,79.902,0.02895804]
[1770977109161,30.0,79.944,79.911,0.03358321]
[1770977109468,30.0,79.944,79.913,0.03814958]
[1770977109866,31.26491013,79.962,79.913,0.03814958]
[1770977109867,0.91375797,79.958,79.931,0.03814958]
[1770977110053,0.91375797,79.968,79.931,0.03814958]
[1770977110252,0.91375797,79.975,79.941,0.04266941]
[1770977110455,0.91375797,79.969,79.941,0.04266941]
[1770977111973,9.8427457,79.96,79.938,55.00413876]
[1770977112156,0.91375797,79.959,79.923,57.8]
[1770977113067,0.91375797,79.957,79.924,12.51188629]
[1770977113672,0.91375797,79.949,79.919,57.8]
[1770977114170,0.91375797,79.939,79.919,57.8]
[1770977114362,0.91375797,79.939,79.911,12.51377787]
[1770977114859,0.91375797,79.939,79.903,57.8]
[1770977115058,12.50969501,79.938,79.904,12.51501802]
[1770977115375,0.91375797,79.937,79.904,12.51501802]
[1770977115777,0.91375797,79.937,79.905,0.06457301]
[1770977117263,0.91375797,79.935,79.904,12.51501802]
[1770977117461,0.91375797,79.949,79.911,0.07298201]
[1770977117774,0.91375797,79.949,79.921,0.07298201]
[1770977118457,0.91375797,79.949,79.923,0.07710521]
[1770977120377,0.91375797,79.949,79.923,12.58914805]
[1770977120767,0.91375797,79.949,79.923,12.51204284]
[1770977122985,0.91375797,79.948,79.923,12.51204284]
[1770977123761,0.91375797,79.948,79.922,57.82]
[1770977123762,0.91375797,79.939,79.922,57.82]
[1770977124482,0.91375797,79.939,79.918,12.51269214]
[1770977124679,0.91375797,79.939,79.917,57.88]
[1770977125162,4.13067768,79.93,79.917,57.88]
[1770977125362,0.91375797,79.929,79.917,57.88]
[1770977125968,4.13067768,79.93,79.917,57.88]
[1770977126167,0.91375797,79.936,79.917,70.39289427]
[1770977126369,31.26937749,79.951,79.918,0.10848529]
[1770977126370,4.13067768,79.94,79.918,0.10848529]
[1770977126569,5.04443565,79.94,79.918,0.10848529]
[1770977126767,31.26937749,79.951,79.917,70.39289427]
[1770977126768,0.91375797,79.939,79.917,70.39289427]
[1770977128582,0.91375797,79.939,79.917,57.88]
[1770977129866,9.83332335,79.93,79.917,57.88]
[1770977130176,0.91375797,79.932,79.917,57.88]
[1770977131673,0.91375797,79.932,79.917,70.39284447]
[1770977131869,0.91375797,79.938,79.917,57.88]
[1770977132269,0.91375797,79.929,79.899,0.12672207]
[1770977132468,0.91375797,79.929,79.9,57.94]
[1770977132782,0.91375797,79.929,79.902,12.51532701]
[1770977133373,0.91375797,79.929,79.904,12.51501802]
[1770977133578,0.91375797,79.929,79.905,57.94]
[1770977135788,0.91375797,79.929,79.906,12.51470477]
[1770977136374,0.91375797,79.929,79.907,57.98]
[1770977137078,0.91375797,79.929,79.901,12.51548791]
[1770977137284,0.91375797,79.929,79.908,57.98]
[1770977137475,0.91375797,79.949,79.911,0.13367082]
[1770977138783,0.91375797,79.939,79.91,9.83332335]
[1770977139092,0.91375797,79.919,79.907,58.0]
[1770977139986,0.91375797,79.919,79.907,70.51449774]
[1770977140481,0.91375797,79.919,79.907,58.0]
[1770977141468,0.91375797,79.919,79.907,54.2069241]
[1770977141871,0.91375797,79.919,79.896,70.5561913]
[1770977142474,9.83783551,79.94,79.897,0.98277998]
[1770977142685,9.83783551,79.94,79.896,101.84686918]
[1770977142686,9.83783551,79.94,79.901,0.98277998]
[1770977143695,9.83783551,79.94,79.902,12.51533128]
[1770977143884,9.83783551,79.92,79.903,58.08]
[1770977145094,9.83783551,79.92,79.893,12.51667457]
[1770977145287,9.83783551,79.92,79.894,58.1]
[1770977145993,9.83783551,79.91,79.879,12.51885084]
[1770977146192,62.54323514,79.945,79.86,0.2]
[1770977146193,9.83783551,79.9,79.862,0.98277998]
[1770977146380,9.83783551,79.9,79.864,0.98277998]
[1770977146585,9.83783551,79.91,79.864,0.98277998]
[1770977146894,9.83783551,79.9,79.864,0.98277998]
[1770977147282,0.02311523,79.908,79.866,0.98277998]
[1770977147485,12.51454816,79.907,79.866,0.98277998]
[1770977147879,0.02311523,79.908,79.871,0.98277998]
[1770977148275,0.02681301,79.929,79.881,0.98277998]
[1770977148595,0.02681301,79.919,79.881,0.98277998]
[1770977149397,0.02681301,79.919,79.883,0.98277998]
[1770977149689,0.02681301,79.919,79.882,43.81462656]
[1770977149889,0.03047262,79.909,79.882,43.81462656]
[1770977150272,0.03047262,79.909,79.883,0.98277998]
[1770977151280,0.03047262,79.909,79.884,12.51815131]
[1770977151789,0.03047262,79.909,79.885,0.98277998]
[1770977152497,0.03047262,79.909,79.886,58.1]
[1770977153495,0.04465347,79.907,79.886,58.1]
[1770977154194,0.04810295,79.899,79.872,0.98277998]
[1770977154399,0.04810295,79.899,79.873,0.98277998]
[1770977155181,0.05151277,79.905,79.873,0.98277998]
[1770977155382,30.0,79.899,79.875,0.98277998]
[1770977157080,0.0582147,79.898,79.875,0.98277998]
[1770977157280,30.0,79.898,79.875,0.98277998]
[1770977157496,30.0,79.898,79.876,12.51940507]
[1770977157703,0.0582147,79.897,79.876,12.51940507]
[1770977158202,0.0582147,79.897,79.877,58.2]
[1770977158398,30.06152677,79.896,79.876,12.51940507]
[1770977158698,30.06152677,79.896,79.878,58.22]
[1770977159377,30.06152677,79.896,79.864,31.30301411]
[1770977159378,0.06478501,79.889,79.868,12.52065908]
[1770977159682,30.06478501,79.889,79.874,58.22]
[1770977159883,30.0,79.889,79.872,0.98277998]
[1770977160382,31.28394899,79.914,79.872,0.98277998]
[1770977160383,4.13300291,79.91,79.872,0.98277998]
[1770977160595,0.07116573,79.909,79.872,0.98277998]
[1770977160990,0.07116573,79.917,79.872,0.98277998]
[1770977161189,31.27584858,79.934,79.872,0.98277998]
[1770977161190,12.58651662,79.923,79.872,0.98277998]
[1770977161392,0.07432655,79.943,79.893,0.98277998]
[1770977161597,4.13300291,79.93,79.895,0.98277998]
[1770977161908,0.07432655,79.919,79.894,58.24]
[1770977162086,4.13300291,79.91,79.895,0.98277998]
[1770977162294,0.07743677,79.919,79.895,0.98277998]
[1770977162604,0.07743677,79.919,79.894,58.24]
[1770977162605,4.13300291,79.91,79.894,59.22277998]
[1770977163106,4.13300291,79.91,79.894,58.24]
[1770977163304,0.07743677,79.913,79.894,58.24]
[1770977163693,0.07743677,79.913,79.895,12.51642781]
[1770977163991,4.13300291,79.92,79.896,0.98277998]
[1770977164196,0.08049404,79.926,79.896,0.98277998]
[1770977165791,0.08049404,79.926,79.898,0.98277998]
[1770977166186,0.08949748,79.939,79.898,0.98277998]
[1770977166392,0.08949748,79.939,79.901,0.98277998]
[1770977167908,0.09242775,79.937,79.903,0.98277998]
[1770977168108,4.13300291,79.94,79.903,0.98277998]
[1770977168609,0.09532195,79.939,79.903,0.98277998]
[1770977170020,0.09532195,79.939,79.904,12.51501802]
[1770977170309,0.10099967,79.945,79.911,0.98277998]
[1770977170505,4.23400258,79.94,79.913,0.98277998]
[1770977171323,0.10379482,79.939,79.913,0.98277998]
[1770977172394,0.10379482,79.939,79.915,0.98277998]
[1770977172694,0.10654478,79.938,79.913,0.98277998]
[1770977175108,4.13300291,79.94,79.915,0.98277998]
[1770977175498,0.11462997,79.939,79.915,0.98277998]
[1770977177119,0.11462997,79.939,79.916,12.51313879]
[1770977177319,0.11462997,79.939,79.917,0.98277998]
[1770977179421,0.11462997,79.939,79.917,59.34277998]
[1770977183625,0.11462997,79.939,79.918,12.51282564]
[1770977183825,0.11462997,79.939,79.918,13.49560562]
[1770977184026,16.6424089,79.94,79.906,1.05023569]
[1770977184027,4.13300291,79.93,79.906,1.05023569]
[1770977184326,16.6424089,79.94,79.908,1.05023569]
[1770977184624,4.13300291,79.94,79.91,1.05023569]
[1770977184818,12.50881369,79.944,79.912,1.05023569]
[1770977185026,4.13300291,79.94,79.912,1.05023569]
[1770977185410,4.13300291,79.94,79.914,1.05023569]
[1770977185705,12.50749278,79.953,79.914,1.05023569]
[1770977186016,4.13300291,79.97,79.931,1.05023569]
[1770977186207,4.13300291,79.97,79.933,1.05023569]
[1770977186408,4.13300291,79.97,79.935,1.05023569]
[1770977186608,12.50422017,79.973,79.941,1.05023569]
[1770977186808,0.1,79.99,79.943,1.05023569]
[1770977187031,4.13300291,79.98,79.943,1.05023569]
[1770977187614,4.13300291,79.98,79.942,58.4]
[1770977187615,4.13300291,79.98,79.951,1.05023569]
[1770977188222,4.13300291,79.98,79.953,1.05023569]
[1770977188423,12.50220723,79.986,79.953,1.05023569]
[1770977188606,4.13300291,79.98,79.953,1.05023569]
[1770977188815,4.23300291,79.99,79.953,1.05023569]
[1770977189018,16.73469381,79.99,79.961,1.05023569]
[1770977189532,49.96777942,80.052,79.971,1.05023569]
[1770977189533,31.24430729,80.015,79.971,1.05023569]
[1770977189728,12.49703195,80.019,79.981,1.05023569]
[1770977189910,12.49703195,80.019,79.98,4.13300291]
[1770977189911,12.49703195,80.019,79.983,1.05023569]
[1770977190314,12.49703195,80.019,79.985,1.05023569]
[1770977190513,4.13300291,80.01,79.985,1.05023569]
[1770977191142,4.15349134,80.01,79.985,1.05023569]
[1770977191436,0.02048843,80.009,79.985,1.05023569]
[1770977191634,0.02048843,80.009,79.984,58.38]
[1770977191838,4.13300291,79.99,79.965,58.38]
[1770977192215,4.13300291,79.98,79.965,58.38]
[1770977193318,4.13300291,79.98,79.954,12.50717803]
[1770977194536,12.50328211,79.979,79.951,1.06047262]
[1770977194722,4.13300291,79.97,79.944,13.56909963]
[1770977195618,4.13300291,79.97,79.945,1.06047262]
[1770977195852,12.50359478,79.977,79.945,1.06047262]
[1770977196341,4.13300291,79.97,79.945,1.06047262]
[1770977196843,12.50359478,79.977,79.945,1.06047262]
[1770977199223,12.50359478,79.977,79.947,1.06047262]
[1770977202248,0.02008687,79.976,79.947,1.06047262]
[1770977202742,0.02008687,79.976,79.945,58.4]
[1770977202743,0.02008687,79.976,79.949,1.06047262]
[1770977206550,0.02008687,79.976,79.951,1.06047262]
[1770977207732,12.50359478,79.977,79.951,1.06047262]
[1770977208144,0.02911191,79.976,79.951,1.06047262]
[1770977209848,12.50359478,79.977,79.953,1.06047262]
[1770977210048,2.0,99.0,79.953,1.06047262]
[1770977210049,12.5027292,79.983,79.953,1.06047262]
[1770977210345,12.5005433,79.997,79.971,1.06047262]
[1770977210548,12.53252675,79.997,79.971,1.06047262]
[1770977210758,0.03198345,79.996,79.971,1.06047262]
[1770977212340,0.03478587,79.979,79.963,58.4]
[1770977214045,4.12677402,79.98,79.963,58.4]
[1770977214355,4.12677402,79.98,79.963,59.46047262]
[1770977215251,0.03616716,79.985,79.963,59.46047262]
[1770977215757,12.49906257,80.006,79.965,1.06047262]
[1770977215758,0.03887965,79.998,79.965,1.06047262]
[1770977216656,12.53927356,80.006,79.981,1.06047262]
[1770977217033,0.04021099,80.011,79.981,1.06047262]
[1770977217234,0.04152564,80.017,79.983,12.50265681]
[1770977217540,0.04152564,80.017,79.984,1.06047262]
[1770977218250,12.49703195,80.019,79.991,1.06047262]
[1770977218651,0.04282397,80.018,79.991,1.06047262]
[1770977219360,4.22677402,80.02,79.991,1.06047262]
[1770977219554,0.1,80.02,79.992,1.06047262]
[1770977219755,0.1,80.02,80.001,1.06047262]
[1770977220345,0.1,80.02,80.003,1.06047262]
[1770977220862,1.01891546,80.019,79.986,12.50203502]
[1770977221043,1.01891546,80.009,79.982,12.50270803]
[1770977221354,1.01891546,80.009,79.977,12.50359478]
[1770977221556,1.01891546,80.009,79.98,4.12677402]
[1770977222038,1.01891546,80.008,79.977,12.50359478]
[1770977222440,1.01891546,79.999,79.973,12.50420893]
[1770977223237,1.01891546,79.999,79.969,0.98088927]
[1770977223632,4.12677402,79.99,79.969,0.98088927]
[1770977224655,5.14568948,79.99,79.969,0.98088927]
[1770977225643,1.01891546,79.999,79.963,31.2643543]
[1770977226243,1.01891546,79.999,79.964,58.46]
[1770977226455,1.01891546,79.999,79.963,31.2643543]
[1770977226456,1.01891546,79.999,79.97,4.12677402]
[1770977226755,1.01891546,80.006,79.971,58.48]
[1770977227759,12.49921879,80.005,79.974,0.98088927]
[1770977228462,12.49921879,80.005,79.981,0.98088927]
[1770977228967,1.01891546,80.006,79.981,0.98088927]
[1770977229152,1.01891546,80.006,79.98,4.12677402]
[1770977229153,1.01891546,80.019,79.991,0.98088927]
[1770977230241,1.01891546,80.019,79.993,0.98088927]
[1770977231058,1.01891546,80.017,79.993,0.98088927]
[1770977231259,1.01891546,80.009,79.988,58.48]
[1770977231438,1.01891546,80.015,79.989,0.98088927]
[1770977232337,1.01891546,80.009,79.988,58.48]
[1770977233364,1.01891546,80.009,79.988,70.98182658]
[1770977234967,1.01891546,80.009,79.988,71.96271585]
[1770977235369,1.01891546,80.009,79.989,0.98088927]
[1770977239673,1.01891546,80.009,79.988,70.98182658]
[1770977239971,1.01891546,80.009,79.989,0.98088927]
[1770977242755,1.01891546,80.009,79.988,58.48]
[1770977244678,1.01891546,79.999,79.976,58.66]
[1770977244856,1.01891546,79.999,79.975,1.11192856]
[1770977245677,12.5003125,79.998,79.969,1.11192856]
[1770977245865,4.12677402,79.99,79.97,13.61661781]
[1770977246066,4.12677402,79.99,79.971,1.11192856]
[1770977246284,12.5003125,79.998,79.971,1.11192856]
[1770977247760,4.12677402,79.99,79.971,1.11192856]
[1770977251566,0.02844761,79.989,79.971,1.11192856]
[1770977252169,0.03154164,79.999,79.972,12.50437653]
[1770977252480,0.03154164,79.999,79.973,1.11192856]
[1770977254467,0.03762773,80.005,79.975,1.11192856]
[1770977254683,0.03762773,80.005,79.974,12.50406382]
[1770977254684,0.03762773,80.005,79.981,1.11192856]
[1770977257475,4.12677402,80.0,79.981,1.11192856]
[1770977258075,0.03762773,80.005,79.981,1.11192856]
[1770977259672,0.1,80.02,79.983,1.11192856]
[1770977259875,0.1,80.02,80.001,1.11192856]
[1770977260075,0.1,80.02,79.982,12.50281313]
[1770977260076,0.05505924,80.048,80.011,1.0693857]
[1770977260280,0.05505924,80.048,79.996,58.78]
[1770977260281,12.54769535,80.048,80.021,1.0693857]
[1770977261095,4.22677402,80.07,80.021,1.0693857]
[1770977261096,12.64938469,80.055,80.021,1.0693857]
[1770977261667,12.64938469,80.055,80.02,4.12677402]
[1770977261668,0.15791375,80.055,80.023,1.0693857]
[1770977262079,4.12677402,80.05,80.023,1.0693857]
[1770977262893,4.11898304,80.05,80.024,12.49625112]
[1770977263189,4.11898304,80.05,80.025,1.0693857]
[1770977263987,4.21898304,80.06,80.031,1.0693857]
[1770977264793,0.16901597,80.058,80.024,1.0693857]
[1770977265092,16.61127874,80.05,80.025,1.0693857]
[1770977265398,4.11898304,80.05,80.025,1.0693857]
[1770977267177,12.66775486,80.059,80.031,1.0693857]
[1770977267577,0.17696682,80.058,80.031,1.0693857]
[1770977269300,12.49110009,80.057,80.031,1.0693857]
[1770977269494,4.11898304,80.05,80.031,1.0693857]
[1770977270084,0.18210934,80.052,80.031,1.0693857]
[1770977270288,0.18210934,80.052,80.032,1.0693857]
[1770977271202,4.11898304,80.05,80.032,1.0693857]
[1770977271396,0.18714607,80.056,80.032,1.0693857]
[1770977272712,0.18960645,80.049,80.026,1.0693857]
[1770977273316,12.49250449,80.048,80.026,1.0693857]
[1770977278792,0.2038763,80.039,80.014,1.0693857]
[1770977278990,0.2038763,80.039,80.015,1.0693857]
[1770977279191,0.20615431,80.045,80.015,1.0693857]
[1770977281415,0.1,80.06,80.01,4.11898304]
[1770977281416,0.21285431,80.059,80.031,1.13443965]